fUST/lending_fUST_20241113
["ID","MTS","AMOUNT","RATE_DAILY","PERIOD"]
[342150328,1731509461989,-212.0390805,0.00029452,30]
[342150329,1731509461999,-3422.99019912,0.00029474,2]
[342150330,1731509462070,-30177.81883419,0.00029474,2]
[342150331,1731509462081,-3480.66016581,0.00029484,2]
[342150332,1731509462094,-30120.1488675,0.00029484,2]
[342150333,1731509462105,-7051.11731762,0.00029489,2]
[342150334,1731509462128,-446.499999,0.00029489,2]
[342150335,1731509462140,-26103.19171669,0.00029489,2]
[342150336,1731509462150,-1019.0,0.000295,4]
[342150337,1731509462160,-300.0,0.000295,2]
[342150338,1731509462169,-5000.0,0.00029506,20]
[342150339,1731509462179,-329.09526342,0.00029526,2]
[342150340,1731509462190,-199.90473658,0.00029526,2]
[342150341,1731509462203,-500.0,0.00029589,10]
[342150342,1731509462213,-152.36,0.000297,31]
[342150343,1731509462223,-152.36,0.000297,31]
[342150344,1731509462232,-152.36,0.000297,31]
[342150345,1731509462242,-152.36,0.000297,31]
[342150346,1731509462251,-152.36,0.000297,31]
[342150347,1731509462261,-152.36,0.000297,31]
[342150348,1731509462270,-164.17451342,0.00029707,27]
[342150349,1731509462435,-453.825,0.00018985,2]
[342150350,1731509462451,-4546.175,0.00018985,2]
[342150351,1731509462461,-500.0,0.00019178,2]
[342150352,1731509462471,-500.0,0.00019178,2]
[342150353,1731509462481,-537.55,0.00019452,2]
[342150354,1731509462496,-2963.374,0.00029707,27]
[342150503,1731510570362,5000.0,0.00016,2]
[342150512,1731510585361,5000.0,0.00016,2]
[342150567,1731510632502,-3602.67791768,0.00016274,2]
[342150569,1731510632512,-4950.31488325,0.00016871,2]
[342150571,1731510632522,-491.56264505,0.00017183,2]
[342150582,1731510632615,-318.00157233,0.00017183,2]
[342150584,1731510632630,-278.88153742,0.00017183,2]
[342150586,1731510632640,-300.0,0.00017251,2]
[342150588,1731510632650,-300.0,0.00017251,2]
[342150590,1731510632660,-8248.18345834,0.00017252,2]
[342150688,1731510638555,-210.9658117,0.00017083,2]
[342150689,1731510638566,-1621.25697026,0.00017252,2]
[342150690,1731510638576,-6608.5737702,0.00017445,2]
[342150691,1731510638586,-468.172434,0.0001749,2]
[342150692,1731510638595,-500.0,0.00017685,2]
[342150693,1731510638605,-500.0,0.00017685,2]
[342150694,1731510638615,-500.0,0.00017685,2]
[342150695,1731510638625,-211.97398315,0.00017685,2]
[342150696,1731510638642,-2874.65478353,0.0001778,2]
[342150697,1731510638653,-1281.9191,0.00017827,2]
[342150698,1731510638663,-347.499756,0.00017827,2]
[342150699,1731510638675,-159.351563,0.00017827,2]
[342150700,1731510638685,-159.351563,0.00017845,2]
[342150701,1731510638695,-159.351563,0.00017862,2]
[342150702,1731510638704,-159.351563,0.0001788,2]
[342150703,1731510638714,-159.351563,0.00017898,2]
[342150704,1731510638724,-159.351563,0.00017916,2]
[342150705,1731510638734,-1281.9191,0.00018512,2]
[342150706,1731510638744,-154.78429739,0.00018681,2]
[342150707,1731510638753,-420.0,0.00018838,2]
[342150708,1731510638763,-420.0,0.00018977,2]
[342150709,1731510638773,-286.38521,0.00019078,2]
[342150710,1731510638783,-576.92,0.00019168,3]
[342150711,1731510638792,-500.0,0.00019173,2]
[342150712,1731510638802,-501.63377348,0.00019173,2]
[342150713,1731510638811,-500.0,0.00019173,2]
[342150714,1731510638822,-500.43429681,0.00019173,2]
[342150715,1731510638832,-500.0,0.00019173,2]
[342150716,1731510638841,-500.42886103,0.00019173,2]
[342150717,1731510638851,-501.06592868,0.00019173,2]
[342150718,1731510638860,-500.34629178,0.00019173,2]
[342150719,1731510638870,-372.67977275,0.00019173,2]
[342150720,1731510638882,-500.0,0.00019173,2]
[342150721,1731510638892,-500.0,0.00019173,2]
[342150722,1731510638902,-500.0,0.00019177,2]
[342150723,1731510638912,-388.38482481,0.00019177,2]
[342150724,1731510638922,-429.98914504,0.00019177,2]
[342150725,1731510638932,-500.0,0.00019177,2]
[342150726,1731510638942,-217.07063905,0.00019177,2]
[342150727,1731510638952,-500.0,0.00019177,2]
[342150728,1731510638967,-500.0,0.00019177,2]
[342150729,1731510638977,-500.0,0.00019177,2]
[342150730,1731510638986,-500.0,0.00019177,2]
[342150731,1731510638995,-500.0,0.00019177,2]
[342150732,1731510639007,-500.0,0.00019177,2]
[342150733,1731510639017,-500.0,0.00019177,2]
[342150734,1731510639026,-500.0,0.00019177,2]
[342150735,1731510639038,-500.0,0.00019177,2]
[342150736,1731510639048,-500.0,0.00019177,2]
[342150737,1731510639059,-500.0,0.00019177,2]
[342150738,1731510639068,-500.0,0.00019177,2]
[342150739,1731510639078,-500.0,0.00019177,2]
[342150740,1731510639087,-500.0,0.00019177,2]
[342150741,1731510639096,-500.0,0.00019177,2]
[342150742,1731510639106,-500.0,0.00019177,2]
[342150743,1731510639115,-500.0,0.00019177,2]
[342150744,1731510639125,-500.0,0.00019177,2]
[342150745,1731510639138,-500.0,0.00019177,2]
[342150746,1731510639148,-500.0,0.00019177,2]
[342150747,1731510639157,-500.0,0.00019177,2]
[342150748,1731510639166,-500.0,0.00019177,2]
[342150749,1731510639176,-500.0,0.00019177,2]
[342150750,1731510639185,-389.21436156,0.00019177,2]
[342150751,1731510639195,-500.0,0.00019177,2]
[342150752,1731510639206,-500.0,0.00019177,2]
[342150753,1731510639216,-500.0,0.00019177,2]
[342150754,1731510639226,-500.0,0.00019177,2]
[342150755,1731510639235,-500.0,0.00019177,2]
[342150756,1731510639245,-525.8043518,0.00019177,2]
[342150757,1731510639255,-500.0,0.00019177,2]
[342150758,1731510639264,-500.0,0.00019177,2]
[342150759,1731510639274,-500.0,0.00019177,2]
[342150760,1731510639283,-500.0,0.00019177,2]
[342150761,1731510639293,-338.92143615,0.00019177,2]
[342150762,1731510639302,-500.0,0.00019177,2]
[342150763,1731510639312,-500.0,0.00019177,2]
[342150764,1731510639321,-500.0,0.00019177,2]
[342150765,1731510639330,-500.0,0.00019177,2]
[342150766,1731510639339,-500.0,0.00019177,2]
[342150767,1731510639348,-500.0,0.00019177,2]
[342150768,1731510639358,-500.0,0.00019177,2]
[342150769,1731510639367,-500.0,0.00019177,2]
[342150770,1731510639380,-500.0,0.00019177,2]
[342150771,1731510639389,-500.0,0.00019177,2]
[342150772,1731510639399,-500.0,0.00019177,2]
[342150773,1731510639408,-203.26665091,0.00019177,2]
[342150774,1731510639418,-500.0,0.00019177,2]
[342150775,1731510639428,-500.0,0.00019177,2]
[342150776,1731510639439,-500.0,0.00019177,2]
[342150777,1731510639448,-487.35539382,0.00019177,2]
[342150778,1731510639458,-503.87603841,0.00019177,2]
[342150779,1731510639468,-500.0,0.00019178,2]
[342150780,1731510639477,-500.0,0.00019178,2]
[342150781,1731510639486,-501.52584224,0.00019178,2]
[342150782,1731510639497,-500.0,0.00019178,2]
[342150783,1731510639506,-234.14976802,0.00019178,2]
[342150784,1731510639516,-500.0,0.00019178,2]
[342150785,1731510639526,-500.0,0.00019178,2]
[342150786,1731510639534,-192.01880821,0.00019178,2]
[342150787,1731510639543,-500.0,0.00019178,2]
[342150788,1731510639553,-500.0,0.00019178,2]
[342150789,1731510639562,-500.0,0.00019178,2]
[342150790,1731510639571,-500.0,0.00019178,2]
[342150791,1731510639580,-500.0,0.00019178,2]
[342150792,1731510639591,-500.0,0.00019178,2]
[342150793,1731510639600,-500.0,0.00019178,2]
[342150794,1731510639609,-159.94645419,0.00019178,2]
[342150795,1731510639618,-513.74291922,0.00019178,2]
[342150796,1731510639630,-500.0,0.00019178,2]
[342150797,1731510639643,-500.0,0.00019178,2]
[342150798,1731510639652,-500.0,0.00019178,2]
[342150799,1731510639662,-500.0,0.00019178,2]
[342150800,1731510639672,-500.0,0.00019178,2]
[342150801,1731510639681,-500.0,0.00019178,2]
[342150802,1731510639691,-500.0,0.00019178,2]
[342150803,1731510639701,-244.06497229,0.00019178,2]
[342150804,1731510639711,-501.28448261,0.00019178,2]
[342150805,1731510639721,-501.6493699,0.00019178,2]
[342150806,1731510639731,-500.0,0.00019178,2]
[342150807,1731510639740,-500.0,0.00019178,2]
[342150808,1731510639750,-500.0,0.00019178,2]
[342150809,1731510639760,-505.5760862,0.00019178,2]
[342150810,1731510639769,-500.0,0.00019178,2]
[342150811,1731510639778,-500.0,0.00019178,2]
[342150812,1731510639788,-500.0,0.00019178,2]
[342150813,1731510639797,-500.0,0.00019178,2]
[342150814,1731510639812,-611.65405125,0.00019178,2]
[342150815,1731510639821,-502.46516175,0.00019178,2]
[342150816,1731510639830,-500.0,0.00019178,2]
[342150817,1731510639840,-500.0,0.00019178,2]
[342150818,1731510639851,-503.98036457,0.00019178,2]
[342150819,1731510639860,-500.0,0.00019178,2]
[342150820,1731510639870,-503.65622904,0.00019178,2]
[342150822,1731510639883,-500.0,0.00019178,2]
[342150823,1731510639892,-501.6521319,0.00019178,2]
[342150825,1731510639901,-503.68157148,0.00019178,2]
[342150826,1731510639910,-500.0,0.00019178,2]
[342150827,1731510639920,-500.0,0.00019178,2]
[342150828,1731510639929,-500.0,0.00019178,2]
[342150829,1731510639939,-501.77787135,0.00019178,2]
[342150830,1731510639948,-500.0,0.00019178,2]
[342150831,1731510639961,-500.0,0.00019178,2]
[342150832,1731510639970,-500.0,0.00019178,2]
[342150833,1731510639980,-548.98908631,0.00019178,2]
[342150834,1731510639989,-500.0,0.00019178,2]
[342150835,1731510639999,-517.9992484,0.00019178,2]
[342150837,1731510640008,-500.0,0.00019178,2]
[342150840,1731510640017,-500.0,0.00019178,2]
[342150842,1731510640027,-500.0,0.00019178,2]
[342150843,1731510640038,-500.0,0.00019178,2]
[342150844,1731510640051,-500.0,0.00019178,2]
[342150845,1731510640061,-500.0,0.00019178,2]
[342150846,1731510640071,-500.0,0.00019178,2]
[342150847,1731510640081,-500.0,0.00019178,2]
[342150848,1731510640090,-547.16,0.00019178,2]
[342150849,1731510640100,-500.0,0.00019178,2]
[342150850,1731510640111,-500.0,0.00019178,2]
[342150851,1731510640120,-500.0,0.00019178,2]
[342150852,1731510640134,-500.0,0.00019178,2]
[342150853,1731510640144,-500.0,0.00019178,2]
[342150854,1731510640153,-500.0,0.00019178,2]
[342150855,1731510640162,-500.0,0.00019178,2]
[342150856,1731510640172,-500.0,0.00019178,2]
[342150857,1731510640181,-552.87078081,0.00019178,2]
[342150858,1731510640190,-500.0,0.00019178,2]
[342150859,1731510640199,-503.28203367,0.00019178,2]
[342150860,1731510640208,-500.0,0.00019178,2]
[342150861,1731510640217,-538.54866829,0.00019178,2]
[342150862,1731510640227,-500.0,0.00019178,2]
[342150863,1731510640236,-500.0,0.00019178,2]
[342150864,1731510640246,-500.0,0.00019178,2]
[342150865,1731510640257,-500.0,0.00019178,2]
[342150866,1731510640268,-500.0,0.00019178,2]
[342150867,1731510640278,-500.0,0.00019178,2]
[342150868,1731510640287,-322.27847085,0.00019178,2]
[342150869,1731510640299,-500.0,0.00019178,2]
[342150870,1731510640310,-500.0,0.00019178,2]
[342150871,1731510640320,-500.0,0.00019178,2]
[342150872,1731510640331,-509.31018008,0.00019178,2]
[342150873,1731510640341,-500.0,0.00019178,2]
[342150874,1731510640351,-501.88660152,0.00019178,2]
[342150875,1731510640360,-500.0,0.00019178,2]
[342150876,1731510640370,-500.0,0.00019178,2]
[342150877,1731510640381,-268.37291962,0.00019178,2]
[342150878,1731510640391,-500.0,0.00019178,2]
[342150879,1731510640401,-500.0,0.00019178,2]
[342150880,1731510640412,-500.0,0.00019178,2]
[342150881,1731510640422,-500.0,0.00019178,2]
[342150882,1731510640431,-500.0,0.00019178,2]
[342150883,1731510640440,-500.0,0.00019178,2]
[342150884,1731510640450,-500.0,0.00019178,2]
[342150885,1731510640459,-500.0,0.00019178,2]
[342150886,1731510640468,-500.0,0.00019178,2]
[342150887,1731510640478,-500.0,0.00019178,2]
[342150888,1731510640487,-500.0,0.00019178,2]
[342150889,1731510640501,-500.0,0.00019178,2]
[342150890,1731510640512,-500.0,0.00019178,2]
[342150891,1731510640521,-500.0,0.00019178,2]
[342150892,1731510640531,-500.0,0.00019178,2]
[342150893,1731510640540,-500.0,0.00019178,2]
[342150894,1731510640549,-500.0,0.00019178,2]
[342150895,1731510640558,-500.0,0.00019178,2]
[342150896,1731510640567,-500.0,0.00019178,2]
[342150897,1731510640577,-500.0,0.00019178,2]
[342150898,1731510640587,-500.0,0.00019178,2]
[342150899,1731510640604,-500.0,0.00019178,2]
[342150900,1731510640624,-372.51049435,0.00019178,2]
[342150901,1731510640639,-500.0,0.00019178,2]
[342150902,1731510640650,-500.0,0.00019178,2]
[342150903,1731510640661,-500.0,0.00019178,2]
[342150904,1731510640671,-500.0,0.00019178,2]
[342150905,1731510640681,-500.0,0.00019178,2]
[342150906,1731510640691,-503.4274848,0.00019178,2]
[342150907,1731510640701,-500.0,0.00019178,2]
[342150908,1731510640711,-500.0,0.00019178,2]
[342150909,1731510640720,-503.56637732,0.00019178,2]
[342150910,1731510640729,-500.0,0.00019178,2]
[342150911,1731510640739,-500.0,0.00019178,2]
[342150912,1731510640748,-500.0,0.00019178,2]
[342150913,1731510640757,-500.0,0.00019178,2]
[342150914,1731510640767,-500.0,0.00019178,2]
[342150915,1731510640776,-200.0,0.00019178,2]
[342150916,1731510640785,-500.0,0.00019178,2]
[342150917,1731510640795,-500.0,0.00019178,2]
[342150918,1731510640804,-500.0,0.00019178,2]
[342150919,1731510640813,-500.0,0.00019178,2]
[342150920,1731510640822,-500.0,0.00019178,2]
[342150921,1731510640832,-500.0,0.00019178,2]
[342150922,1731510640841,-500.0,0.00019178,2]
[342150923,1731510640851,-500.0,0.00019178,2]
[342150924,1731510640861,-580.46106847,0.00019178,2]
[342150925,1731510640871,-500.0,0.00019178,2]
[342150926,1731510640886,-500.0,0.00019178,2]
[342150927,1731510640895,-500.0,0.00019178,2]
[342150928,1731510640904,-500.0,0.00019178,2]
[342150929,1731510640914,-331.42,0.00019178,2]
[342150930,1731510640923,-500.0,0.00019178,2]
[342150931,1731510640932,-500.0,0.00019178,2]
[342150932,1731510640941,-500.0,0.00019178,2]
[342150933,1731510640950,-59.049339,0.00019178,2]
[342150934,1731510640969,-440.950661,0.00019178,2]
[342150935,1731510640978,-500.0,0.00019178,2]
[342150936,1731510640987,-500.88635381,0.00019178,2]
[342150937,1731510640996,-500.0,0.00019178,2]
[342150938,1731510641006,-507.03723487,0.00019178,2]
[342150939,1731510641016,-500.0,0.00019178,2]
[342150940,1731510641025,-500.0,0.00019178,2]
[342150941,1731510641037,-639.62764495,0.00019178,2]
[342150942,1731510641047,-500.0,0.00019178,2]
[342150943,1731510641056,-500.0,0.00019178,2]
[342150944,1731510641065,-500.0,0.00019178,2]
[342150945,1731510641075,-500.0,0.00019178,2]
[342150946,1731510641084,-500.0,0.00019178,2]
[342150947,1731510641094,-500.0,0.00019178,2]
[342150948,1731510641103,-500.0,0.00019178,2]
[342150949,1731510641113,-500.0,0.00019178,2]
[342150950,1731510641123,-500.0,0.00019178,2]
[342150951,1731510641136,-500.0,0.00019178,2]
[342150952,1731510641146,-500.0,0.00019178,2]
[342150953,1731510641154,-500.0,0.00019178,2]
[342150954,1731510641164,-500.0,0.00019178,2]
[342150955,1731510641173,-500.0,0.00019178,2]
[342150956,1731510641183,-500.0,0.00019178,2]
[342150957,1731510641194,-500.0,0.00019178,2]
[342150958,1731510641203,-500.0,0.00019178,2]
[342150959,1731510641213,-414.05875251,0.00019178,2]
[342150960,1731510641222,-500.0,0.00019178,2]
[342150961,1731510641231,-194.30606248,0.00019178,2]
[342150962,1731510641240,-500.0,0.00019178,2]
[342150963,1731510641249,-500.0,0.00019178,2]
[342150964,1731510641259,-277.41939538,0.00019178,2]
[342150965,1731510641268,-500.0,0.00019178,2]
[342150966,1731510641277,-500.0,0.00019178,2]
[342150967,1731510641286,-500.0,0.00019178,2]
[342150968,1731510641295,-500.0,0.00019178,2]
[342150969,1731510641304,-500.0,0.00019178,2]
[342150970,1731510641314,-500.0,0.00019178,2]
[342150971,1731510641323,-500.0,0.00019178,2]
[342150972,1731510641332,-500.0,0.00019178,2]
[342150973,1731510641341,-210.08564952,0.00019178,2]
[342150974,1731510641351,-500.0,0.00019178,2]
[342150975,1731510641360,-500.0,0.00019178,2]
[342150976,1731510641369,-503.58571974,0.00019178,2]
[342150977,1731510641382,-500.0,0.00019178,2]
[342150978,1731510641391,-500.0,0.00019178,2]
[342150979,1731510641400,-500.0,0.00019178,2]
[342150980,1731510641411,-500.0,0.00019178,2]
[342150981,1731510641420,-500.0,0.00019178,2]
[342150982,1731510641430,-500.0,0.00019178,2]
[342150983,1731510641440,-500.0,0.00019178,2]
[342150984,1731510641450,-500.0,0.00019178,2]
[342150985,1731510641459,-500.0,0.00019178,2]
[342150986,1731510641470,-500.0,0.00019178,2]
[342150987,1731510641479,-500.0,0.00019178,2]
[342150988,1731510641489,-500.0,0.00019178,2]
[342150989,1731510641498,-500.0,0.00019178,2]
[342150990,1731510641508,-500.0,0.00019178,2]
[342150991,1731510641518,-62.37249574,0.00019178,2]
[342150992,1731510641535,-437.62750426,0.00019178,2]
[342150993,1731510641662,-500.0,0.00019178,2]
[342150994,1731510641672,-500.0,0.00019178,2]
[342150995,1731510641682,-500.0,0.00019178,2]
[342150996,1731510641691,-500.0,0.00019178,2]
[342150997,1731510641701,-500.0,0.00019178,2]
[342150998,1731510641710,-500.0,0.00019178,2]
[342150999,1731510641720,-507.3172506,0.00019178,2]
[342151000,1731510641730,-500.0,0.00019178,2]
[342151001,1731510641740,-500.0,0.00019178,2]
[342151002,1731510641750,-500.0,0.00019178,2]
[342151003,1731510641761,-500.0,0.00019178,2]
[342151004,1731510641771,-500.0,0.00019178,2]
[342151005,1731510641780,-500.0,0.00019178,2]
[342151006,1731510641790,-500.0,0.00019178,2]
[342151007,1731510641799,-500.0,0.00019178,2]
[342151008,1731510641809,-500.0,0.00019178,2]
[342151009,1731510641820,-500.0,0.00019178,2]
[342151010,1731510641829,-500.0,0.00019178,2]
[342151011,1731510641838,-500.0,0.00019178,2]
[342151012,1731510641848,-500.0,0.00019178,2]
[342151013,1731510641858,-500.0,0.00019178,2]
[342151014,1731510641867,-500.0,0.00019178,2]
[342151015,1731510641877,-500.0,0.00019178,2]
[342151016,1731510641897,-500.0,0.00019178,2]
[342151017,1731510641907,-500.0,0.00019178,2]
[342151018,1731510641916,-500.0,0.00019178,2]
[342151019,1731510641926,-253.34147774,0.00019178,2]
[342151020,1731510641935,-406.83131182,0.00019178,2]
[342151021,1731510641948,-93.16868818,0.00019178,2]
[342151022,1731510641958,-500.0,0.00019178,2]
[342151023,1731510641970,-500.0,0.00019178,2]
[342151024,1731510641980,-500.0,0.00019178,2]
[342151025,1731510641989,-500.0,0.00019178,2]
[342151026,1731510641998,-500.0,0.00019178,2]
[342151027,1731510642008,-500.000001,0.00019178,2]
[342151028,1731510642018,-415.00012535,0.00019178,2]
[342151029,1731510642027,-500.0,0.00019178,2]
[342151030,1731510642037,-500.0,0.00019178,2]
[342151031,1731510642048,-621.11927739,0.00019178,2]
[342151032,1731510642057,-294.36769068,0.00019178,2]
[342151033,1731510642066,-500.0,0.00019178,2]
[342151034,1731510642075,-500.0,0.00019178,2]
[342151035,1731510642084,-500.0,0.00019178,2]
[342151036,1731510642094,-500.0,0.00019178,2]
[342151037,1731510642103,-350.00429185,0.00019178,2]
[342151038,1731510642112,-500.0,0.00019178,2]
[342151039,1731510642121,-186.15492806,0.00019178,2]
[342151040,1731510642136,-526.8439543,0.00019178,2]
[342151041,1731510642146,-500.0,0.00019178,2]
[342151042,1731510642155,-500.0,0.00019178,2]
[342151043,1731510642164,-500.0,0.00019178,2]
[342151044,1731510642173,-500.0,0.00019178,2]
[342151045,1731510642184,-244.92927193,0.00019178,2]
[342151046,1731510642193,-500.0,0.00019178,2]
[342151047,1731510642202,-500.0,0.00019178,2]
[342151048,1731510642211,-500.0,0.00019178,2]
[342151049,1731510642220,-500.0,0.00019178,2]
[342151050,1731510642230,-500.0,0.00019178,2]
[342151051,1731510642239,-500.0,0.00019178,2]
[342151052,1731510642249,-500.0,0.00019178,2]
[342151053,1731510642258,-500.0,0.00019178,2]
[342151054,1731510642268,-644.2,0.00019178,2]
[342151055,1731510642278,-500.0,0.00019178,2]
[342151056,1731510642287,-670.97,0.00019178,2]
[342151057,1731510642297,-500.0,0.00019178,2]
[342151058,1731510642307,-500.0,0.00019178,2]
[342151059,1731510642317,-500.0,0.00019178,2]
[342151060,1731510642326,-500.0,0.00019178,2]
[342151061,1731510642336,-500.0,0.00019178,2]
[342151062,1731510642347,-500.0,0.00019178,2]
[342151063,1731510642357,-500.0,0.00019178,2]
[342151064,1731510642366,-500.0,0.00019178,2]
[342151065,1731510642376,-500.0,0.00019178,2]
[342151066,1731510642390,-500.0,0.00019178,2]
[342151067,1731510642400,-500.0,0.00019178,2]
[342151068,1731510642410,-500.0,0.00019178,2]
[342151069,1731510642419,-266.02765959,0.00019178,2]
[342151070,1731510642429,-65.32975314,0.00019178,2]
[342151071,1731510642442,-434.67024686,0.00019178,2]
[342151072,1731510642452,-500.0,0.00019178,2]
[342151073,1731510642462,-500.0,0.00019178,2]
[342151074,1731510642472,-500.0,0.00019178,2]
[342151075,1731510642481,-500.0,0.00019178,2]
[342151076,1731510642491,-500.0,0.00019178,2]
[342151077,1731510642500,-500.0,0.00019178,2]
[342151078,1731510642510,-347.63971814,0.00019178,2]
[342151079,1731510642519,-500.0,0.00019178,2]
[342151080,1731510642529,-894.17,0.00019178,2]
[342151081,1731510642538,-500.0,0.00019178,2]
[342151082,1731510642547,-500.0,0.00019178,2]
[342151083,1731510642556,-500.0,0.00019178,2]
[342151084,1731510642565,-500.0,0.00019178,2]
[342151085,1731510642575,-500.0,0.00019178,2]
[342151086,1731510642584,-500.0,0.00019178,2]
[342151087,1731510642594,-1237.93,0.00019178,2]
[342151088,1731510642603,-514.01414811,0.00019178,2]
[342151089,1731510642613,-500.0,0.00019178,2]
[342151090,1731510642623,-500.0,0.00019178,2]
[342151091,1731510642638,-631.50877711,0.00019178,2]
[342151092,1731510642647,-500.0,0.00019178,2]
[342151093,1731510642657,-500.0,0.00019178,2]
[342151094,1731510642667,-500.0,0.00019178,2]
[342151095,1731510642678,-500.0,0.00019178,2]
[342151096,1731510642687,-118.26104058,0.00019178,2]
[342151097,1731510642699,-381.73895942,0.00019178,2]
[342151098,1731510642709,-500.0,0.00019178,2]
[342151099,1731510642719,-500.0,0.00019178,2]
[342151100,1731510642728,-500.0,0.00019178,2]
[342151101,1731510642738,-500.0,0.00019178,2]
[342151102,1731510642748,-500.0,0.00019178,2]
[342151103,1731510642758,-263.96516429,0.00019178,2]
[342151104,1731510642770,-236.03483571,0.00019178,2]
[342151105,1731510642780,-226.74957335,0.00019178,2]
[342151106,1731510642789,-357.09292013,0.00019178,2]
[342151107,1731510642819,-142.90707987,0.00019178,2]
[342151109,1731510642829,-500.0,0.00019178,2]
[342151110,1731510642838,-500.0,0.00019178,2]
[342151111,1731510642848,-515.54404238,0.00019178,2]
[342151112,1731510642857,-500.0,0.00019178,2]
[342151113,1731510642866,-500.0,0.00019178,2]
[342151114,1731510642875,-500.0,0.00019178,2]
[342151115,1731510642890,-500.0,0.00019178,2]
[342151116,1731510642899,-631.81220531,0.00019178,2]
[342151118,1731510642909,-500.0,0.00019178,2]
[342151119,1731510642919,-360.06206808,0.00019178,2]
[342151120,1731510642927,-500.0,0.00019178,2]
[342151121,1731510642937,-500.0,0.00019178,2]
[342151122,1731510642946,-500.0,0.00019178,2]
[342151123,1731510642958,-500.0,0.00019178,2]
[342151124,1731510642969,-501.40428144,0.00019178,2]
[342151125,1731510642978,-500.0,0.00019178,2]
[342151127,1731510642987,-500.0,0.00019178,2]
[342151129,1731510642998,-500.0,0.00019178,2]
[342151130,1731510643007,-500.0,0.00019178,2]
[342151131,1731510643016,-2648.67,0.00019178,2]
[342151132,1731510643026,-500.0,0.00019178,2]
[342151133,1731510643037,-500.0,0.00019178,2]
[342151134,1731510643046,-500.0,0.00019178,2]
[342151135,1731510643055,-500.0,0.00019178,2]
[342151136,1731510643064,-520.0946716,0.00019178,2]
[342151137,1731510643074,-275.27913372,0.00019178,2]
[342151138,1731510643083,-500.0,0.00019178,2]
[342151139,1731510643093,-500.0,0.00019178,2]
[342151140,1731510643102,-500.0,0.00019178,2]
[342151141,1731510643111,-500.0,0.00019178,2]
[342151142,1731510643121,-500.0,0.00019178,2]
[342151143,1731510643132,-500.0,0.00019178,2]
[342151144,1731510643142,-1281.9191,0.00019197,2]
[342151145,1731510643152,-500.0,0.00019449,2]
[342151146,1731510643161,-500.0,0.00019449,2]
[342151147,1731510643170,-500.0,0.00019451,2]
[342151148,1731510643179,-500.0,0.00019451,2]
[342151149,1731510643188,-534.02403974,0.00019451,2]
[342151150,1731510643198,-188.83723221,0.00019451,2]
[342151151,1731510643207,-198.27195476,0.00019451,2]
[342151152,1731510643217,-260.92262381,0.00019451,2]
[342151153,1731510643226,-519.91972657,0.00019451,2]
[342151154,1731510643235,-500.0,0.00019452,2]
[342151155,1731510643245,-500.0,0.00019452,2]
[342151156,1731510643255,-500.0,0.00019452,2]
[342151157,1731510643264,-500.0,0.00019452,2]
[342151158,1731510643273,-500.0,0.00019452,2]
[342151159,1731510643282,-638.34322309,0.00019452,2]
[342151160,1731510643291,-500.0,0.00019452,2]